[Event "January 2 Late 2024"]
[Site "https://www.chess.com"]
[Date "2024.01.02"]
[Round "4"]
[White "Banerjee, Supratit"]
[Black "Gao, Raymond"]
[Result "1-0"]
[Board "150"]
[TimeControl "180+1"]
[WhiteFideId "2410079"]
[BlackFideId "2629429"]
[WhiteElo "2555"]
[BlackElo "2371"]
[WhiteTeam "SCO"]
[BlackTeam "CAN"]
[WhiteClock "0:01:09"]
[BlackClock "0:00:05"]

1. e4 {[%clk 0:03:00]}  c5 {[%clk 0:02:50]} 2. c3 {[%clk 0:03:00]}  Nf6 {[%clk 0:02:49]} 3. e5 {[%clk 0:03:00]}  Nd5 {[%clk 0:02:49]} 4. d4 {[%clk 0:03:00]}  cxd4 {[%clk 0:02:50]} 5. cxd4 {[%clk 0:03:01]}  Nc6 {[%clk 0:02:49]} 6. Nf3 {[%clk 0:03:01]}  d6 {[%clk 0:02:49]} 7. Bc4 {[%clk 0:03:01]}  Nb6 {[%clk 0:02:50]} 8. Bb5 {[%clk 0:03:01]}  dxe5 {[%clk 0:02:50]} 9. Nxe5 {[%clk 0:03:02]}  Bd7 {[%clk 0:02:51]} 10. Nxd7 {[%clk 0:03:02]}  Qxd7 {[%clk 0:02:52]} 11. Nc3 {[%clk 0:03:02]}  e6 {[%clk 0:02:52]} 12. O-O {[%clk 0:03:02]}  Be7 {[%clk 0:02:52]} 13. Qg4 {[%clk 0:03:02]}  O-O {[%clk 0:02:52]} 14. Be3 {[%clk 0:02:56]}  Rfd8 {[%clk 0:02:45]} 15. Rad1 {[%clk 0:02:54]}  a6 {[%clk 0:02:39]} 16. Bd3 {[%clk 0:02:49]}  Nd5 {[%clk 0:02:37]} 17. Nxd5 {[%clk 0:02:31]}  Qxd5 {[%clk 0:02:36]} 18. b3 {[%clk 0:02:30]}  Rac8 {[%clk 0:02:34]} 19. Bc4 {[%clk 0:02:29]}  Qd7 {[%clk 0:02:13]} 20. Qf3 {[%clk 0:02:25]}  b5 {[%clk 0:02:05]} 21. Bd3 {[%clk 0:02:23]}  Nb4 {[%clk 0:02:01]} 22. Bb1 {[%clk 0:02:17]}  Nd5 {[%clk 0:01:57]} 23. Rfe1 {[%clk 0:02:17]}  Bf6 {[%clk 0:01:47]} 24. Qe4 {[%clk 0:02:03]}  g6 {[%clk 0:01:45]} 25. Qf3 {[%clk 0:02:01]}  Bg7 {[%clk 0:01:43]} 26. h4 {[%clk 0:02:01]}  Nc3 {[%clk 0:01:38]} 27. Rc1 {[%clk 0:01:58]}  Nxb1 {[%clk 0:01:38]} 28. Rxb1 {[%clk 0:01:57]}  Qd5 {[%clk 0:01:37]} 29. Qg3 {[%clk 0:01:54]}  Rc2 {[%clk 0:01:32]} 30. a4 {[%clk 0:01:48]}  b4 {[%clk 0:01:26]} 31. Red1 {[%clk 0:01:27]}  Rc3 {[%clk 0:01:24]} 32. Qg5 {[%clk 0:01:27]}  Qxg5 {[%clk 0:01:16]} 33. hxg5 {[%clk 0:01:25]}  Kf8 {[%clk 0:00:47]} 34. Bd2 {[%clk 0:01:22]}  Rxd4 {[%clk 0:00:21]} 35. Bxc3 {[%clk 0:01:20]}  Rxd1+ {[%clk 0:00:22]} 36. Rxd1 {[%clk 0:01:20]}  bxc3 {[%clk 0:00:19]} 37. Kf1 {[%clk 0:01:20]}  Ke7 {[%clk 0:00:15]} 38. Ke2 {[%clk 0:01:19]}  Be5 {[%clk 0:00:14]} 39. Kd3 {[%clk 0:01:18]}  a5 {[%clk 0:00:07]} 40. Kc2 {[%clk 0:01:18]}  f5 {[%clk 0:00:06]} 41. gxf6+ {[%clk 0:01:18]}  Kxf6 {[%clk 0:00:07]} 42. Rd7 {[%clk 0:01:17]}  h5 {[%clk 0:00:06]} 43. Ra7 {[%clk 0:01:17]}  Bd4 {[%clk 0:00:06]} 44. Rxa5 {[%clk 0:01:16]}  Bxf2 {[%clk 0:00:06]} 45. Rb5 {[%clk 0:01:15]}  Bd4 {[%clk 0:00:03]} 46. a5 {[%clk 0:01:15]}  g5 {[%clk 0:00:03]} 47. a6 {[%clk 0:01:15]}  g4 {[%clk 0:00:03]} 48. Rxh5 {[%clk 0:01:14]}  e5 {[%clk 0:00:03]} 49. b4 {[%clk 0:01:13]}  e4 {[%clk 0:00:02]} 50. Rd5 {[%clk 0:01:13]}  Be5 {[%clk 0:00:01]} 51. Rxe5 {[%clk 0:01:12]}  Kxe5 {[%clk 0:00:01]} 52. a7 {[%clk 0:01:12]}  e3 {[%clk 0:00:01]} 53. a8=Q {[%clk 0:01:13]}  Kf4 {[%clk 0:00:02]} 54. Qe8 {[%clk 0:01:12]}  Kg3 {[%clk 0:00:01]} 55. Qxe3+ {[%clk 0:01:11]}  Kxg2 {[%clk 0:00:02]} 56. Kxc3 {[%clk 0:01:11]}  g3 {[%clk 0:00:03]} 57. b5 {[%clk 0:01:12]}  Kh2 {[%clk 0:00:04]} 58. b6 {[%clk 0:01:12]}  g2 {[%clk 0:00:05]} 59. b7 {[%clk 0:01:11]}  g1=Q {[%clk 0:00:06]} 60. b8=Q+ {[%clk 0:01:11]}  Kh1 {[%clk 0:00:05]} 61. Qh8+ {[%clk 0:01:10]}  Qh2 {[%clk 0:00:06]} 62. Qe1+ {[%clk 0:01:09]}  Kg2 {[%clk 0:00:07]} 63. Qe2+ {[%clk 0:01:09]}  Kg3 {[%clk 0:00:05]} 64. Qhxh2# {[%clk 0:01:09]} 1-0

[Event "January 2 Late 2024"]
[Site "https://www.chess.com"]
[Date "2024.01.02"]
[Round "4"]
[White "Obon Temprano, Sergi"]
[Black "Womacka, Mathias"]
[Result "0-1"]
[Board "152"]
[TimeControl "180+1"]
[WhiteFideId "2226545"]
[BlackFideId "4611390"]
[WhiteElo "2362"]
[BlackElo "2547"]
[WhiteTeam "ESP"]
[BlackTeam "GER"]
[WhiteClock "0:00:04"]
[BlackClock "0:00:08"]

1. Nf3 {[%clk 0:03:00]}  c5 {[%clk 0:03:00]} 2. c4 {[%clk 0:02:59]}  Nf6 {[%clk 0:02:58]} 3. Nc3 {[%clk 0:02:59]}  e6 {[%clk 0:02:57]} 4. g3 {[%clk 0:02:58]}  b6 {[%clk 0:02:57]} 5. Bg2 {[%clk 0:02:58]}  Bb7 {[%clk 0:02:58]} 6. O-O {[%clk 0:02:58]}  Be7 {[%clk 0:02:56]} 7. d3 {[%clk 0:02:52]}  O-O {[%clk 0:02:54]} 8. Rb1 {[%clk 0:02:52]}  d5 {[%clk 0:02:53]} 9. a3 {[%clk 0:02:51]}  Nbd7 {[%clk 0:02:42]} 10. b4 {[%clk 0:02:49]}  dxc4 {[%clk 0:02:32]} 11. dxc4 {[%clk 0:02:49]}  cxb4 {[%clk 0:02:32]} 12. axb4 {[%clk 0:02:48]}  Rc8 {[%clk 0:02:32]} 13. Qb3 {[%clk 0:02:43]}  Qc7 {[%clk 0:02:29]} 14. Nb5 {[%clk 0:02:11]}  Qxc4 {[%clk 0:02:28]} 15. Nxa7 {[%clk 0:02:10]}  Qxb3 {[%clk 0:02:15]} 16. Rxb3 {[%clk 0:02:09]}  Ra8 {[%clk 0:02:07]} 17. Nb5 {[%clk 0:02:08]}  Rfc8 {[%clk 0:02:06]} 18. Be3 {[%clk 0:02:05]}  Ra2 {[%clk 0:02:00]} 19. Nfd4 {[%clk 0:01:50]}  Bxg2 {[%clk 0:01:58]} 20. Kxg2 {[%clk 0:01:51]}  Nd5 {[%clk 0:01:55]} 21. Rfb1 {[%clk 0:01:30]}  g6 {[%clk 0:01:40]} 22. Bh6 {[%clk 0:01:05]}  e5 {[%clk 0:01:26]} 23. e4 {[%clk 0:00:52]}  N5f6 {[%clk 0:01:23]} 24. Nf3 {[%clk 0:00:42]}  Nxe4 {[%clk 0:01:19]} 25. R1b2 {[%clk 0:00:42]}  Rc2 {[%clk 0:01:17]} 26. Rxa2 {[%clk 0:00:39]}  Rxa2 {[%clk 0:01:16]} 27. Be3 {[%clk 0:00:39]}  Kg7 {[%clk 0:00:52]} 28. Rd3 {[%clk 0:00:39]}  Ndf6 {[%clk 0:00:52]} 29. Nxe5 {[%clk 0:00:36]}  Bxb4 {[%clk 0:00:50]} 30. Bxb6 {[%clk 0:00:34]}  Be1 {[%clk 0:00:44]} 31. Rf3 {[%clk 0:00:27]}  Rb2 {[%clk 0:00:40]} 32. Nd3 {[%clk 0:00:25]}  Rxb5 {[%clk 0:00:37]} 33. Bd4 {[%clk 0:00:25]}  Bc3 {[%clk 0:00:35]} 34. Bxc3 {[%clk 0:00:22]}  Nxc3 {[%clk 0:00:35]} 35. Nf4 {[%clk 0:00:21]}  Ncd5 {[%clk 0:00:33]} 36. Nd3 {[%clk 0:00:20]}  Ne4 {[%clk 0:00:31]} 37. Ne5 {[%clk 0:00:20]}  f6 {[%clk 0:00:29]} 38. Ng4 {[%clk 0:00:20]}  h5 {[%clk 0:00:27]} 39. Ne3 {[%clk 0:00:20]}  Nxe3+ {[%clk 0:00:27]} 40. Rxe3 {[%clk 0:00:21]}  f5 {[%clk 0:00:27]} 41. h4 {[%clk 0:00:20]}  Rb2 {[%clk 0:00:26]} 42. Ra3 {[%clk 0:00:20]}  Rxf2+ {[%clk 0:00:25]} 43. Kh3 {[%clk 0:00:20]}  Rc2 {[%clk 0:00:22]} 44. Ra7+ {[%clk 0:00:19]}  Kh6 {[%clk 0:00:22]} 45. Ra8 {[%clk 0:00:20]}  Nf2+ {[%clk 0:00:21]} 46. Kg2 {[%clk 0:00:19]}  Ng4+ {[%clk 0:00:21]} 47. Kg1 {[%clk 0:00:18]}  Ne5 {[%clk 0:00:19]} 48. Ra3 {[%clk 0:00:17]}  Rd2 {[%clk 0:00:17]} 49. Ra5 {[%clk 0:00:14]}  Nf3+ {[%clk 0:00:16]} 50. Kf1 {[%clk 0:00:15]}  Kg7 {[%clk 0:00:16]} 51. Ra3 {[%clk 0:00:14]}  Ne5 {[%clk 0:00:15]} 52. Ra5 {[%clk 0:00:14]}  Kf6 {[%clk 0:00:15]} 53. Ra6+ {[%clk 0:00:14]}  Kf7 {[%clk 0:00:15]} 54. Ra7+ {[%clk 0:00:15]}  Ke6 {[%clk 0:00:15]} 55. Ra6+ {[%clk 0:00:15]}  Kd5 {[%clk 0:00:15]} 56. Ra5+ {[%clk 0:00:15]}  Ke4 {[%clk 0:00:16]} 57. Ra3 {[%clk 0:00:16]}  Rd3 {[%clk 0:00:15]} 58. Ra5 {[%clk 0:00:14]}  Rxg3 {[%clk 0:00:14]} 59. Ra4+ {[%clk 0:00:15]}  Kd5 {[%clk 0:00:13]} 60. Kf2 {[%clk 0:00:15]}  Rc3 {[%clk 0:00:12]} 61. Ra5+ {[%clk 0:00:15]}  Rc5 {[%clk 0:00:12]} 62. Ra6 {[%clk 0:00:15]}  Ke4 {[%clk 0:00:11]} 63. Ra4+ {[%clk 0:00:15]}  Rc4 {[%clk 0:00:11]} 64. Ra6 {[%clk 0:00:15]}  Rc2+ {[%clk 0:00:10]} 65. Kg3 {[%clk 0:00:15]}  f4+ {[%clk 0:00:11]} 66. Kh3 {[%clk 0:00:15]}  f3 {[%clk 0:00:11]} 67. Kg3 {[%clk 0:00:13]}  Rg2+ {[%clk 0:00:10]} 68. Kh3 {[%clk 0:00:12]}  Rg4 {[%clk 0:00:11]} 69. Ra4+ {[%clk 0:00:11]}  Ke3 {[%clk 0:00:11]} 70. Ra3+ {[%clk 0:00:11]}  Kf4 {[%clk 0:00:10]} 71. Ra4+ {[%clk 0:00:11]}  Kf5 {[%clk 0:00:10]} 72. Ra3 {[%clk 0:00:11]}  f2 {[%clk 0:00:10]} 73. Ra2 {[%clk 0:00:12]}  Rf4 {[%clk 0:00:08]} 74. Rxf2 {[%clk 0:00:11]}  Rxf2 {[%clk 0:00:08]} 75. Kg3 {[%clk 0:00:12]}  Rf3+ {[%clk 0:00:09]} 76. Kh2 {[%clk 0:00:11]}  Kg4 {[%clk 0:00:09]} 77. Kh1 {[%clk 0:00:04]}  Kg3 {[%clk 0:00:08]} 0-1

[Event "January 2 Late 2024"]
[Site "https://www.chess.com"]
[Date "2024.01.02"]
[Round "4"]
[White "RaugintaBulba"]
[Black "Van der Werf, Mark"]
[Result "1-0"]
[Board "153"]
[TimeControl "180+1"]
[BlackFideId "1000470"]
[WhiteElo "2530"]
[BlackElo "2355"]
[BlackTeam "NED"]
[WhiteClock "0:00:05"]
[BlackClock "0:00:00"]

1. d4 {[%clk 0:03:00]}  g6 {[%clk 0:02:59]} 2. c4 {[%clk 0:03:01]}  Bg7 {[%clk 0:02:59]} 3. e4 {[%clk 0:03:01]}  c5 {[%clk 0:02:57]} 4. d5 {[%clk 0:03:01]}  d6 {[%clk 0:02:58]} 5. h3 {[%clk 0:02:59]}  Nf6 {[%clk 0:02:56]} 6. Nc3 {[%clk 0:02:58]}  O-O {[%clk 0:02:55]} 7. Nf3 {[%clk 0:02:59]}  a6 {[%clk 0:02:49]} 8. Be3 {[%clk 0:02:54]}  b5 {[%clk 0:02:47]} 9. cxb5 {[%clk 0:02:54]}  Nbd7 {[%clk 0:02:46]} 10. a4 {[%clk 0:02:51]}  Qa5 {[%clk 0:02:34]} 11. Bd2 {[%clk 0:02:49]}  axb5 {[%clk 0:02:25]} 12. Nxb5 {[%clk 0:02:46]}  Qb6 {[%clk 0:02:20]} 13. Bd3 {[%clk 0:02:45]}  Ne8 {[%clk 0:02:12]} 14. Qc2 {[%clk 0:02:41]}  Nc7 {[%clk 0:02:06]} 15. O-O {[%clk 0:02:29]}  Na6 {[%clk 0:02:04]} 16. Ra2 {[%clk 0:02:19]}  Nb4 {[%clk 0:01:57]} 17. Bxb4 {[%clk 0:02:19]}  cxb4 {[%clk 0:01:56]} 18. b3 {[%clk 0:02:19]}  Nc5 {[%clk 0:01:55]} 19. Bc4 {[%clk 0:02:16]}  Bd7 {[%clk 0:01:42]} 20. Nfd4 {[%clk 0:02:10]}  Rfc8 {[%clk 0:01:36]} 21. Qe2 {[%clk 0:01:57]}  Nb7 {[%clk 0:01:22]} 22. Rd2 {[%clk 0:01:38]}  Na5 {[%clk 0:01:17]} 23. Nc6 {[%clk 0:01:29]}  Nxc6 {[%clk 0:01:09]} 24. dxc6 {[%clk 0:01:30]}  Bxc6 {[%clk 0:01:07]} 25. Qf3 {[%clk 0:01:26]}  Rf8 {[%clk 0:01:03]} 26. Rfd1 {[%clk 0:01:18]}  Rac8 {[%clk 0:00:58]} 27. Qg4 {[%clk 0:01:12]}  Bb7 {[%clk 0:00:41]} 28. Rc2 {[%clk 0:00:57]}  Rc5 {[%clk 0:00:40]} 29. Rdc1 {[%clk 0:00:55]}  Rfc8 {[%clk 0:00:34]} 30. Qf4 {[%clk 0:00:47]}  Rf8 {[%clk 0:00:28]} 31. Kh1 {[%clk 0:00:42]}  Re5 {[%clk 0:00:25]} 32. f3 {[%clk 0:00:42]}  Rh5 {[%clk 0:00:21]} 33. Qh2 {[%clk 0:00:27]}  Bh6 {[%clk 0:00:19]} 34. Rd1 {[%clk 0:00:26]}  Qe3 {[%clk 0:00:16]} 35. Re2 {[%clk 0:00:18]}  Qf4 {[%clk 0:00:15]} 36. Qxf4 {[%clk 0:00:17]}  Bxf4 {[%clk 0:00:14]} 37. a5 {[%clk 0:00:13]}  Bg3 {[%clk 0:00:12]} 38. Ra2 {[%clk 0:00:10]}  Ra8 {[%clk 0:00:08]} 39. Nc7 {[%clk 0:00:08]}  Rc8 {[%clk 0:00:07]} 40. Nd5 {[%clk 0:00:05]}  Bxd5 {[%clk 0:00:04]} 41. Bxd5 {[%clk 0:00:06]}  Rc7 {[%clk 0:00:02]} 42. a6 {[%clk 0:00:06]}  Ra7 {[%clk 0:00:02]} 43. Bb7 {[%clk 0:00:06]}  Rc5 {[%clk 0:00:00]} 44. Kg1 {[%clk 0:00:05]} 1-0

[Event "January 2 Late 2024"]
[Site "https://www.chess.com"]
[Date "2024.01.02"]
[Round "4"]
[White "Berezin, Viktor"]
[Black "Kostiukov, Alexandr"]
[Result "1-0"]
[Board "156"]
[TimeControl "180+1"]
[WhiteFideId "14107872"]
[BlackFideId "14108100"]
[WhiteElo "2510"]
[BlackElo "2339"]
[WhiteTeam "UKR"]
[BlackTeam "UKR"]
[WhiteClock "0:00:33"]
[BlackClock "0:00:00"]

1. d4 {[%clk 0:02:59]}  g6 {[%clk 0:02:57]} 2. Nf3 {[%clk 0:02:58]}  Bg7 {[%clk 0:02:58]} 3. g3 {[%clk 0:02:59]}  d6 {[%clk 0:02:58]} 4. Bg2 {[%clk 0:02:59]}  e5 {[%clk 0:02:58]} 5. Nc3 {[%clk 0:02:58]}  exd4 {[%clk 0:02:57]} 6. Nxd4 {[%clk 0:02:58]}  Ne7 {[%clk 0:02:57]} 7. O-O {[%clk 0:02:53]}  Nbc6 {[%clk 0:02:57]} 8. Nxc6 {[%clk 0:02:51]}  bxc6 {[%clk 0:02:58]} 9. Rb1 {[%clk 0:02:48]}  O-O {[%clk 0:02:52]} 10. Bg5 {[%clk 0:02:37]}  Qd7 {[%clk 0:02:35]} 11. Bxe7 {[%clk 0:02:35]}  Qxe7 {[%clk 0:02:35]} 12. Bxc6 {[%clk 0:02:36]}  Rb8 {[%clk 0:02:35]} 13. Re1 {[%clk 0:02:30]}  Bxc3 {[%clk 0:02:06]} 14. bxc3 {[%clk 0:02:28]}  Rxb1 {[%clk 0:02:07]} 15. Qxb1 {[%clk 0:02:28]}  Qe5 {[%clk 0:02:04]} 16. Qb4 {[%clk 0:02:22]}  Be6 {[%clk 0:01:50]} 17. Qd4 {[%clk 0:02:20]}  Qa5 {[%clk 0:01:47]} 18. a4 {[%clk 0:02:08]}  Rb8 {[%clk 0:01:42]} 19. h4 {[%clk 0:02:01]}  h5 {[%clk 0:01:39]} 20. e4 {[%clk 0:01:55]}  Rb2 {[%clk 0:01:35]} 21. e5 {[%clk 0:01:51]}  d5 {[%clk 0:01:08]} 22. Qe3 {[%clk 0:01:31]}  Rxc2 {[%clk 0:00:41]} 23. Rb1 {[%clk 0:01:10]}  Kg7 {[%clk 0:00:19]} 24. Qf4 {[%clk 0:00:40]}  Qxc3 {[%clk 0:00:03]} 25. Qf6+ {[%clk 0:00:40]}  Kh7 {[%clk 0:00:04]} 26. Rb8 {[%clk 0:00:36]}  Qe1+ {[%clk 0:00:02]} 27. Kg2 {[%clk 0:00:35]}  Qe4+ {[%clk 0:00:00]} 28. Kh2 {[%clk 0:00:33]} 1-0

[Event "January 2 Late 2024"]
[Site "https://www.chess.com"]
[Date "2024.01.02"]
[Round "4"]
[White "Poddubnyi, Viktor"]
[Black "Shapiro, Viktor"]
[Result "0-1"]
[Board "157"]
[TimeControl "180+1"]
[WhiteFideId "4141989"]
[BlackFideId "4175700"]
[WhiteElo "2337"]
[BlackElo "2509"]
[WhiteTeam "RUS"]
[BlackTeam "RUS"]
[WhiteClock "0:00:00"]
[BlackClock "0:00:34"]

1. e4 {[%clk 0:03:00]}  Nf6 {[%clk 0:03:00]} 2. e5 {[%clk 0:03:00]}  Nd5 {[%clk 0:03:00]} 3. d4 {[%clk 0:03:00]}  d6 {[%clk 0:03:00]} 4. c4 {[%clk 0:03:00]}  Nb6 {[%clk 0:03:01]} 5. f4 {[%clk 0:03:00]}  dxe5 {[%clk 0:03:01]} 6. fxe5 {[%clk 0:03:01]}  c5 {[%clk 0:03:01]} 7. d5 {[%clk 0:01:56]}  g6 {[%clk 0:02:58]} 8. Nf3 {[%clk 0:01:55]}  Bg4 {[%clk 0:02:57]} 9. h3 {[%clk 0:01:52]}  Bxf3 {[%clk 0:02:57]} 10. Qxf3 {[%clk 0:01:52]}  Bg7 {[%clk 0:02:58]} 11. Bf4 {[%clk 0:01:40]}  O-O {[%clk 0:02:57]} 12. Nc3 {[%clk 0:01:30]}  e6 {[%clk 0:02:57]} 13. O-O-O {[%clk 0:01:24]}  N8d7 {[%clk 0:02:47]} 14. Qe3 {[%clk 0:01:09]}  exd5 {[%clk 0:02:38]} 15. cxd5 {[%clk 0:01:03]}  Nxe5 {[%clk 0:02:26]} 16. Bxe5 {[%clk 0:00:29]}  Re8 {[%clk 0:02:26]} 17. Bb5 {[%clk 0:00:29]}  Rxe5 {[%clk 0:02:26]} 18. Qf3 {[%clk 0:00:29]}  a6 {[%clk 0:02:21]} 19. Bd3 {[%clk 0:00:26]}  c4 {[%clk 0:02:21]} 20. Bc2 {[%clk 0:00:25]}  f5 {[%clk 0:02:15]} 21. g4 {[%clk 0:00:24]}  Qg5+ {[%clk 0:02:09]} 22. Kb1 {[%clk 0:00:23]}  fxg4 {[%clk 0:02:09]} 23. hxg4 {[%clk 0:00:22]}  Rf8 {[%clk 0:02:09]} 24. Qg2 {[%clk 0:00:21]}  Re3 {[%clk 0:01:51]} 25. d6 {[%clk 0:00:18]}  Rxc3 {[%clk 0:01:46]} 26. bxc3 {[%clk 0:00:17]}  Qb5+ {[%clk 0:01:46]} 27. Kc1 {[%clk 0:00:09]}  Bxc3 {[%clk 0:01:46]} 28. Rdf1 {[%clk 0:00:03]}  Qb2+ {[%clk 0:01:40]} 29. Kd1 {[%clk 0:00:03]}  Qa1+ {[%clk 0:01:33]} 30. Ke2 {[%clk 0:00:03]}  Re8+ {[%clk 0:01:31]} 31. Kf3 {[%clk 0:00:03]}  Qxa2 {[%clk 0:01:17]} 32. Kg3 {[%clk 0:00:03]}  Be5+ {[%clk 0:01:16]} 33. Kh3 {[%clk 0:00:02]}  Qa3+ {[%clk 0:01:14]} 34. Rf3 {[%clk 0:00:03]}  Qxd6 {[%clk 0:01:14]} 35. Rhf1 {[%clk 0:00:02]}  Nd5 {[%clk 0:01:10]} 36. Qf2 {[%clk 0:00:02]}  Nc7 {[%clk 0:00:35]} 37. Rf8+ {[%clk 0:00:00]}  Rxf8 {[%clk 0:00:34]} 0-1

[Event "January 2 Late 2024"]
[Site "https://www.chess.com"]
[Date "2024.01.02"]
[Round "4"]
[White "Jaiveer Mahendru"]
[Black "Wendt, Jan-Dietrich"]
[Result "0-1"]
[Board "158"]
[TimeControl "180+1"]
[WhiteFideId "25611151"]
[BlackFideId "4623797"]
[WhiteElo "2509"]
[BlackElo "2332"]
[WhiteTeam "IND"]
[BlackTeam "GER"]
[WhiteClock "0:00:23"]
[BlackClock "0:00:13"]

1. f4 {[%clk 0:03:00]}  g6 {[%clk 0:02:58]} 2. Nf3 {[%clk 0:03:01]}  Bg7 {[%clk 0:02:58]} 3. g3 {[%clk 0:03:02]}  c5 {[%clk 0:02:58]} 4. Bg2 {[%clk 0:03:02]}  Nc6 {[%clk 0:02:58]} 5. e4 {[%clk 0:03:02]}  d5 {[%clk 0:02:57]} 6. e5 {[%clk 0:03:02]}  Nh6 {[%clk 0:02:55]} 7. O-O {[%clk 0:03:01]}  Nf5 {[%clk 0:02:54]} 8. g4 {[%clk 0:02:59]}  Nfd4 {[%clk 0:02:54]} 9. c3 {[%clk 0:02:57]}  Nxf3+ {[%clk 0:02:49]} 10. Qxf3 {[%clk 0:02:56]}  h5 {[%clk 0:02:49]} 11. g5 {[%clk 0:02:48]}  Be6 {[%clk 0:02:42]} 12. Na3 {[%clk 0:02:46]}  Qd7 {[%clk 0:02:37]} 13. d3 {[%clk 0:02:40]}  O-O-O {[%clk 0:02:27]} 14. Be3 {[%clk 0:02:35]}  d4 {[%clk 0:02:25]} 15. cxd4 {[%clk 0:02:33]}  Nxd4 {[%clk 0:02:20]} 16. Bxd4 {[%clk 0:02:31]}  Qxd4+ {[%clk 0:02:19]} 17. Rf2 {[%clk 0:02:29]}  Bd5 {[%clk 0:02:17]} 18. Qh3+ {[%clk 0:02:21]}  Kb8 {[%clk 0:02:13]} 19. Nb5 {[%clk 0:02:12]}  Bxg2 {[%clk 0:02:05]} 20. Qxg2 {[%clk 0:02:13]}  Qxd3 {[%clk 0:02:02]} 21. a4 {[%clk 0:02:12]}  a6 {[%clk 0:01:53]} 22. Ra3 {[%clk 0:01:59]}  Qd5 {[%clk 0:01:39]} 23. Nc3 {[%clk 0:01:40]}  Qxg2+ {[%clk 0:01:36]} 24. Kxg2 {[%clk 0:01:41]}  f6 {[%clk 0:01:29]} 25. Ne4 {[%clk 0:01:33]}  fxe5 {[%clk 0:01:27]} 26. Nxc5 {[%clk 0:01:34]}  exf4 {[%clk 0:01:05]} 27. Ne6 {[%clk 0:01:10]}  Rdg8 {[%clk 0:00:49]} 28. Rxf4 {[%clk 0:01:06]}  Be5 {[%clk 0:00:35]} 29. Rf7 {[%clk 0:00:48]}  Bd6 {[%clk 0:00:34]} 30. Rb3 {[%clk 0:00:36]}  Rc8 {[%clk 0:00:34]} 31. h4 {[%clk 0:00:34]}  Rc4 {[%clk 0:00:33]} 32. Rg7 {[%clk 0:00:34]}  Rg4+ {[%clk 0:00:31]} 33. Kh3 {[%clk 0:00:33]}  Rc8 {[%clk 0:00:28]} 34. Rc3 {[%clk 0:00:27]}  Rxc3+ {[%clk 0:00:20]} 35. bxc3 {[%clk 0:00:28]}  Rg3+ {[%clk 0:00:21]} 36. Kh2 {[%clk 0:00:28]}  Re3+ {[%clk 0:00:21]} 37. Kg2 {[%clk 0:00:28]}  Rxe6 {[%clk 0:00:21]} 38. Kf3 {[%clk 0:00:27]}  Kc7 {[%clk 0:00:21]} 39. c4 {[%clk 0:00:21]}  Kb6 {[%clk 0:00:20]} 40. Rg8 {[%clk 0:00:21]}  Ka5 {[%clk 0:00:20]} 41. Rc8 {[%clk 0:00:22]}  Re5 {[%clk 0:00:19]} 42. Rb8 {[%clk 0:00:21]}  b6 {[%clk 0:00:19]} 43. Ra8 {[%clk 0:00:21]}  Rc5 {[%clk 0:00:18]} 44. Ke4 {[%clk 0:00:20]}  Rxc4+ {[%clk 0:00:18]} 45. Kd5 {[%clk 0:00:21]}  Rxa4 {[%clk 0:00:18]} 46. Ke6 {[%clk 0:00:22]}  Rxh4 {[%clk 0:00:18]} 47. Kf7 {[%clk 0:00:23]}  Rg4 {[%clk 0:00:18]} 48. Kxg6 {[%clk 0:00:24]}  Bf4 {[%clk 0:00:17]} 49. Kf5 {[%clk 0:00:23]}  Bxg5 {[%clk 0:00:16]} 50. Rh8 {[%clk 0:00:22]}  Bf6 {[%clk 0:00:14]} 51. Rxh5 {[%clk 0:00:22]}  Rb4 {[%clk 0:00:13]} 52. Ke6+ {[%clk 0:00:22]}  b5 {[%clk 0:00:14]} 53. Rh1 {[%clk 0:00:23]}  Ra4 {[%clk 0:00:14]} 54. Kd7 {[%clk 0:00:24]}  b4 {[%clk 0:00:14]} 55. Kc6 {[%clk 0:00:25]}  b3 {[%clk 0:00:14]} 56. Rb1 {[%clk 0:00:23]}  b2 {[%clk 0:00:14]} 57. Kc5 {[%clk 0:00:22]}  Ra1 {[%clk 0:00:13]} 58. Rxb2 {[%clk 0:00:21]}  Bxb2 {[%clk 0:00:12]} 59. Kc4 {[%clk 0:00:22]}  Rd1 {[%clk 0:00:12]} 60. Kc5 {[%clk 0:00:22]}  e5 {[%clk 0:00:12]} 61. Kc6 {[%clk 0:00:23]}  e4 {[%clk 0:00:12]} 62. Kb7 {[%clk 0:00:24]}  e3 {[%clk 0:00:13]} 63. Ka7 {[%clk 0:00:25]}  e2 {[%clk 0:00:13]} 64. Ka8 {[%clk 0:00:26]}  e1=Q {[%clk 0:00:14]} 65. Kb8 {[%clk 0:00:23]}  Rd7 {[%clk 0:00:13]} 0-1

[Event "January 2 Late 2024"]
[Site "https://www.chess.com"]
[Date "2024.01.02"]
[Round "4"]
[White "Kujawski, Adam"]
[Black "Dinu, Dumitru-Daniel"]
[Result "0-1"]
[Board "159"]
[TimeControl "180+1"]
[WhiteFideId "1100920"]
[BlackFideId "1208403"]
[WhiteElo "2324"]
[BlackElo "2508"]
[WhiteTeam "POL"]
[BlackTeam "ROU"]
[WhiteClock "0:00:12"]
[BlackClock "0:00:54"]

1. e4 {[%clk 0:03:00]}  c5 {[%clk 0:02:59]} 2. Nf3 {[%clk 0:03:00]}  d6 {[%clk 0:02:58]} 3. d4 {[%clk 0:03:00]}  Nf6 {[%clk 0:02:58]} 4. Nc3 {[%clk 0:02:58]}  cxd4 {[%clk 0:02:58]} 5. Nxd4 {[%clk 0:02:58]}  a6 {[%clk 0:02:59]} 6. Bg5 {[%clk 0:02:57]}  Nbd7 {[%clk 0:02:58]} 7. Bc4 {[%clk 0:02:56]}  Qb6 {[%clk 0:02:58]} 8. Qd2 {[%clk 0:02:40]}  h6 {[%clk 0:02:53]} 9. Bxf6 {[%clk 0:02:34]}  Nxf6 {[%clk 0:02:53]} 10. O-O-O {[%clk 0:02:32]}  Bd7 {[%clk 0:02:51]} 11. f4 {[%clk 0:02:28]}  Rc8 {[%clk 0:02:50]} 12. Bb3 {[%clk 0:02:21]}  e6 {[%clk 0:02:44]} 13. e5 {[%clk 0:02:11]}  dxe5 {[%clk 0:02:42]} 14. fxe5 {[%clk 0:02:12]}  Ng8 {[%clk 0:02:40]} 15. Kb1 {[%clk 0:01:24]}  Bb4 {[%clk 0:02:35]} 16. Nf5 {[%clk 0:01:16]}  Qc7 {[%clk 0:02:15]} 17. Nxg7+ {[%clk 0:01:08]}  Kf8 {[%clk 0:02:15]} 18. Qxd7 {[%clk 0:01:05]}  Kxg7 {[%clk 0:02:10]} 19. Qd4 {[%clk 0:00:46]}  Bxc3 {[%clk 0:02:07]} 20. bxc3 {[%clk 0:00:42]}  Qxc3 {[%clk 0:02:05]} 21. Qg4+ {[%clk 0:00:42]}  Kf8 {[%clk 0:02:00]} 22. Rhf1 {[%clk 0:00:38]}  Qxe5 {[%clk 0:01:39]} 23. Bxe6 {[%clk 0:00:27]}  Rc7 {[%clk 0:01:32]} 24. Rd8+ {[%clk 0:00:26]}  Ke7 {[%clk 0:01:27]} 25. Rxg8 {[%clk 0:00:26]}  Qb5+ {[%clk 0:01:16]} 26. Bb3 {[%clk 0:00:20]}  Qxf1+ {[%clk 0:01:14]} 27. Kb2 {[%clk 0:00:20]}  Qf6+ {[%clk 0:01:12]} 28. c3 {[%clk 0:00:15]}  Qxc3+ {[%clk 0:01:08]} 29. Ka3 {[%clk 0:00:14]}  Qc5+ {[%clk 0:00:55]} 30. Kb2 {[%clk 0:00:12]}  Qc1# {[%clk 0:00:54]} 0-1